[Event "World Junior U20 Girls 2018"]
[Site "Gebze"]
[Date "2018.09.13"]
[Round "9"]
[White "Santeramo, Alessia"]
[Black "Nassr, Lina"]
[Result "0-1"]
[ECO "B45"]
[WhiteElo "2124"]
[BlackElo "1854"]
[Annotator "NA"]
[PlyCount "78"]
[EventDate "2018.09.05"]
[EventType "swiss"]
[EventCountry "TUR"]
[SourceTitle "playchess.com"]
[Source "ChessBase"]
[SourceQuality "1"]
[TimeControl "40/5400+30:1800+30"]

1. e4 {[%emt 0:00:30]} c5 {[%emt 0:00:30]} 2. Nf3 {[%emt 0:00:30]} e6 {[%emt 0:00:30]} 3. d4 {[%emt 0:00:00]} cxd4 {[%emt 0:00:00]} 4. Nxd4 {[%emt 0:00:00]} Nf6 {[%emt 0:00:00]} 5. Nc3 {[%emt 0:00:00]} Nc6 {[%emt 0:00:00]} 6. Nxc6 {[%emt 0:00:00]} bxc6 {[%emt 0:00:00]} 7. e5 {[%emt 0:00:30]} Nd5 {[%emt 0:00:30]} 8. Ne4 {[%emt 0:00:30]} Bb7 {[%emt 0:00:30]} 9. c4 {[%emt 0:05:30] B45: Sicilian Four Knights} Nb4 {[%emt 0:00:30]} 10. Bd2 {[%emt 0:22:30]} c5 {[%emt 0:07:30] LiveBook: 4 Partien} 11. Bxb4 {[%emt 0:01:30]} (11. Nd6+ Bxd6 12. exd6 Qb6 13. Bc3 Be4 14. Qg4 Bf5 15. Qxg7 O-O-O 16. Rd1 Nc2+ {1-0 (44) Vavulin,M (2575)-Tregubov,P (2589) Moscow 2017}) 11... cxb4 $146 {[%emt 0:11:30]} ({Predecessor:} 11... Bxe4 12. Bc3 Qc7 13. f3 Bc6 14. Bd3 d5 15. cxd5 exd5 16. Qe2 Be7 {0-1 (39) Ivanov,A (2326)-Dovzik,J (2425) Alushta 2006}) 12. Qd4 {[%emt 0:16:30]} Qa5 {[%emt 0:10:30]} 13. b3 {[%emt 0:05:30]} Rd8 {[%emt 0:08:30]} 14. Bd3 {[%emt 0:07:30]} Bxe4 {[%emt 0:04:30]} 15. Qxe4 {[%emt 0:00:30]} Be7 {[%emt 0:03:30]} 16. O-O {[%emt 0:00:30]} f5 {[%emt 0:03:30]} 17. Qe2 {[%emt 0:11:30]} O-O {[%emt 0:03:30]} 18. Rad1 {[%emt 0:00:00]} Qc5 {[%emt 0:05:30]} 19. Bc2 {[%emt 0:02:00]} Rfe8 {[%emt 0:10:30]} 20. Rd3 {[%emt 0:01:30]} d6 {[%emt 0:01:30]} 21. exd6 {[%emt 0:03:30]} Rxd6 {[%emt 0:00:30]} 22. Re3 {[%emt 0:01:39]} Bf6 {[%emt 0:03:30]} 23. h4 {[%emt 0:04:57]} Bc3 {[%emt 0:07:01]} 24. Qf3 {[%emt 0:03:09]} Rf8 {[%emt 0:02:10]} 25. Rd1 {[%emt 0:04:23]} Bd4 $15 {[%emt 0:02:57]} 26. Re2 {[%emt 0:00:38]} e5 {[%emt 0:01:16]} 27. Kf1 {[%emt 0:03:30]} g6 {[%emt 0:02:52]} 28. h5 {[%emt 0:00:32]} Kg7 {[%emt 0:01:35]} 29. h6+ {[%emt 0:01:31]} Kxh6 {[%emt 0:03:58]} 30. g4 {[%emt 0:00:04]} Kg7 {[%emt 0:00:55]} 31. gxf5 {[%emt 0:00:17]} gxf5 {[%emt 0:01:16]} 32. Qb7+ {[%emt 0:03:00]} Rf7 {[%emt 0:01:36]} 33. Qg2+ {[%emt 0:00:02]} Rg6 {[%emt 0:00:19]} 34. Qh1 {[%emt 0:00:48]} Kh8 {[%emt 0:01:55]} 35. Rd3 {[%emt 0:00:38]} Rfg7 {[%emt 0:01:03]} 36. Rh3 {[%emt 0:01:04]} Qe7 {[%emt 0:00:48]} 37. Qh2 {[%emt 0:01:16]} Qg5 {[%emt 0:00:51]} 38. Re1 {[%emt 0:00:07]} Qd2 {[%emt 0:00:22]} 39. Bb1 {[%emt 0:00:54]} Rg1+ {[%emt 0:00:30]} 0-1

[Event "World Junior U20 Girls 2018"]
[Site "Gebze"]
[Date "2018.09.13"]
[Round "9"]
[White "Li, Xinyu"]
[Black "Salah, Nadezhda"]
[Result "0-1"]
[ECO "A43"]
[WhiteElo "2086"]
[BlackElo "1918"]
[Annotator "NA"]
[PlyCount "88"]
[EventDate "2018.09.05"]
[EventType "swiss"]
[EventCountry "TUR"]
[SourceTitle "playchess.com"]
[Source "ChessBase"]
[SourceQuality "1"]
[TimeControl "40/5400+30:1800+30"]

1. d4 {[%emt 0:00:30]} g6 {[%emt 0:00:30]} 2. c4 {[%emt 0:00:30]} Bg7 {[%emt 0:00:30]} 3. Nf3 {[%emt 0:00:00]} d6 {[%emt 0:00:00]} 4. e4 {[%emt 0:00:00]} c5 {[%emt 0:00:00]} 5. d5 {[%emt 0:00:30]} e6 {[%emt 0:00:30]} 6. Nc3 {[%emt 0:01:30]} Ne7 {[%emt 0:01:30]} 7. Bd3 {[%emt 0:01:30]} O-O {[%emt 0:03:30]} 8. O-O {[%emt 0:00:00]} a6 {[%emt 0:05:30] A43: Schmid Benoni} (8... exd5 9. exd5 Bf5 10. Re1 Bxd3 11. Qxd3 Nd7 12. Bf4 Nf6 13. h3 a6 14. Re2 Qd7 15. Rae1 Rae8 16. b3 {½-½ (29) Mchedlishvili,M (2601)-Malakhov,V (2713) Doha 2016}) 9. Bg5 {[%emt 0:04:00]} h6 {[%emt 0:01:30]} 10. Be3 {[%emt 0:01:30]} Nd7 $146 {[%emt 0:12:30]} ({Predecessor:} 10... e5 11. Qd2 g5 {0-1 (59) Lomineishvili,M (2437)-Rajlich,I (2399) St Petersburg 2009}) 11. a3 {[%emt 0:06:30]} e5 {[%emt 0:05:30]} (11... exd5 $11 12. exd5 (12. cxd5 f5 $11) 12... Nf6) 12. Ne1 {[%emt 0:02:30]} f5 {[%emt 0:05:30]} 13. exf5 {[%emt 0:01:30]} gxf5 {[%emt 0:00:30]} 14. f4 {[%emt 0:00:00]} e4 {[%emt 0:05:30]} 15. Be2 {[%emt 0:00:00]} Nf6 {[%emt 0:02:30]} 16. Qd2 {[%emt 0:01:30]} Bd7 {[%emt 0:05:30]} 17. b4 {[%emt 0:04:30]} b6 {[%emt 0:00:30]} 18. Rb1 {[%emt 0:00:30]} Rb8 {[%emt 0:02:30]} 19. Nc2 {[%emt 0:00:30]} Qe8 {[%emt 0:14:30]} 20. Rb3 {[%emt 0:03:30]} Rd8 {[%emt 0:03:30]} (20... Ng4 $11) 21. bxc5 {[%emt 0:05:30]} bxc5 {[%emt 0:00:30]} 22. Rb6 {[%emt 0:00:30]} Bc8 {[%emt 0:00:00]} 23. h3 {[%emt 0:02:30]} Kh7 {[%emt 0:02:00]} 24. Na1 {[%emt 0:01:30]} Rg8 {[%emt 0:01:30]} 25. Rbb1 {[%emt 0:03:30]} Qg6 {[%emt 0:00:30]} 26. Rf2 {[%emt 0:00:30]} Qg3 {[%emt 0:02:30]} 27. Bf1 {[%emt 0:04:30]} Bh8 {[%emt 0:01:30]} 28. Ne2 {[%emt 0:06:30]} Qxh3 {[%emt 0:01:30]} 29. g3 {[%emt 0:00:30]} Qg4 {[%emt 0:00:30]} 30. Rh2 {[%emt 0:01:30]} Qg6 {[%emt 0:01:30]} 31. Nc2 {[%emt 0:01:30]} Bd7 {[%emt 0:01:48]} 32. Bf2 {[%emt 0:07:30]} Ng4 {[%emt 0:02:35]} 33. Rh3 {[%emt 0:00:30]} Rb8 {[%emt 0:01:58]} 34. Qc1 $19 {[%emt 0:04:30]} Rge8 {[%emt 0:08:56]} 35. Bg2 {[%emt 0:02:30]} Nxf2 {[%emt 0:03:07]} 36. Kxf2 {[%emt 0:00:30]} Ng8 {[%emt 0:00:00]} 37. Rh1 {[%emt 0:09:30]} Ba4 {[%emt 0:02:08]} 38. Ne3 {[%emt 0:00:30]} Bd4 {[%emt 0:03:44]} 39. Bh3 {[%emt 0:07:23]} Bxe3+ {[%emt 0:00:39]} 40. Qxe3 {[%emt 0:00:00]} Nf6 {[%emt 0:00:00]} 41. Kg2 {[%emt 0:10:07]} Bc2 {[%emt 0:05:35]} 42. Rxb8 {[%emt 0:00:30]} Rxb8 {[%emt 0:00:30]} 43. Qc3 {[%emt 0:00:30]} Bd3 {[%emt 0:00:30]} 44. Nc1 {[%emt 0:05:30]} Nh5 {[%emt 0:02:30]} 0-1

[Event "World Junior U20 Girls 2018"]
[Site "Gebze"]
[Date "2018.09.13"]
[Round "9"]
[White "Dwilewicz, Katarzyna"]
[Black "Sieber, Fiona"]
[Result "0-1"]
[ECO "B81"]
[WhiteElo "2081"]
[BlackElo "2277"]
[Annotator "NA"]
[PlyCount "88"]
[EventDate "2018.09.05"]
[EventType "swiss"]
[EventCountry "TUR"]
[SourceTitle "playchess.com"]
[Source "ChessBase"]
[SourceQuality "1"]
[TimeControl "40/5400+30:1800+30"]

1. e4 {[%emt 0:00:30]} c5 {[%emt 0:00:30]} 2. Nf3 {[%emt 0:00:30]} e6 {[%emt 0:00:00]} 3. d4 {[%emt 0:00:30]} cxd4 {[%emt 0:00:00]} 4. Nxd4 {[%emt 0:00:00]} Nf6 {[%emt 0:00:00]} 5. Nc3 {[%emt 0:00:00]} d6 {[%emt 0:00:00]} 6. g4 {[%emt 0:00:30]} h6 {[%emt 0:00:30]} 7. h4 {[%emt 0:00:00]} Nc6 {[%emt 0:01:30]} 8. Rg1 {[%emt 0:00:00]} h5 {[%emt 0:00:00]} 9. gxh5 {[%emt 0:00:30]} Nxh5 {[%emt 0:00:00]} 10. Bg5 {[%emt 0:00:30]} Nf6 {[%emt 0:00:30]} 11. Qd2 {[%emt 0:04:30]} Qb6 {[%emt 0:00:30]} 12. Nb3 {[%emt 0:11:30]} a6 {[%emt 0:00:30]} 13. O-O-O {[%emt 0:06:30]} Bd7 {[%emt 0:00:30]} 14. Be2 {[%emt 0:16:30] B81: Sicilian Scheveningen: Keres Attack} Rc8 {[%emt 0:04:30]} (14... Qc7 15. h5 Nxh5 16. Rh1 g6 17. Bxh5 gxh5 18. Qe2 Be7 19. Bxe7 Nxe7 20. Rxh5 O-O-O 21. Rxh8 Rxh8 {½-½ (37) Kryvoruchko,Y (2697)-Kulaots,K (2573) Abu Dhabi 2015}) 15. Kb1 {[%emt 0:02:30]} Qc7 {[%emt 0:20:30]} 16. f4 $146 {[%emt 0:11:30]} ({Predecessor:} 16. h5 b5 17. a3 Ne5 18. h6 Rxh6 19. Bxh6 gxh6 {½-½ (47) Schut,L (2212)-Karavade,E (2386) Arinsal 2009}) 16... b5 {[%emt 0:11:30]} 17. a3 {[%emt 0:01:30]} Nh7 {[%emt 0:02:30]} 18. f5 {[%emt 0:03:30]} Ne5 {[%emt 0:16:30]} 19. fxe6 {[%emt 0:02:30]} Bxe6 {[%emt 0:00:30]} 20. Nd5 {[%emt 0:06:30]} Bxd5 {[%emt 0:00:30]} 21. exd5 {[%emt 0:00:30]} Nxg5 {[%emt 0:00:30]} 22. hxg5 {[%emt 0:04:30]} g6 {[%emt 0:01:30]} 23. Bg4 {[%emt 0:05:30]} Ra8 {[%emt 0:00:30]} 24. Nd4 {[%emt 0:01:30]} Bg7 {[%emt 0:00:30]} 25. Nc6 {[%emt 0:00:48]} a5 {[%emt 0:08:30]} 26. Rde1 {[%emt 0:08:59]} O-O {[%emt 0:02:30]} 27. Nxe5 {[%emt 0:00:30]} Bxe5 {[%emt 0:00:00]} 28. Rh1 {[%emt 0:00:00]} Qe7 {[%emt 0:11:37]} 29. Qe3 {[%emt 0:05:37]} (29. Rh6 $11) 29... Kg7 $1 {[%emt 0:00:27]} 30. Rh6 {[%emt 0:04:21]} Rh8 {[%emt 0:01:34]} 31. Qd2 {[%emt 0:02:14]} Rxh6 {[%emt 0:01:15]} 32. gxh6+ {[%emt 0:00:30]} Kh7 {[%emt 0:00:00]} 33. Rf1 {[%emt 0:00:28]} b4 {[%emt 0:02:24]} 34. a4 {[%emt 0:00:53]} f5 {[%emt 0:01:27]} 35. Be2 {[%emt 0:00:21]} Qf6 {[%emt 0:00:40]} 36. Bd3 {[%emt 0:00:37]} Bxb2 {[%emt 0:01:22]} 37. Ka2 {[%emt 0:00:36]} Rc8 {[%emt 0:01:52]} 38. Qe3 {[%emt 0:00:29]} Bd4 {[%emt 0:04:25]} 39. Qh3 {[%emt 0:00:29]} Rc3 {[%emt 0:00:17]} 40. Kb1 {[%emt 0:00:00]} b3 {[%emt 0:00:00]} 41. Qg2 {[%emt 0:07:38]} b2 {[%emt 0:06:10]} 42. Qe2 {[%emt 0:03:30]} Ra3 {[%emt 0:03:30]} 43. c4 {[%emt 0:01:35]} Qg5 {[%emt 0:01:30]} 44. Re1 {[%emt 0:07:26]} Qc1+ {[%emt 0:00:00]} 0-1

[Event "World Junior U20 Girls 2018"]
[Site "Gebze"]
[Date "2018.09.13"]
[Round "9"]
[White "Sankova, Stella"]
[Black "Caglar, Sila"]
[Result "0-1"]
[ECO "B23"]
[WhiteElo "2081"]
[BlackElo "2208"]
[Annotator "NA"]
[PlyCount "102"]
[EventDate "2018.09.05"]
[EventType "swiss"]
[EventCountry "TUR"]
[SourceTitle "playchess.com"]
[Source "ChessBase"]
[SourceQuality "1"]
[TimeControl "40/5400+30:1800+30"]

1. e4 {[%emt 0:00:30]} c5 {[%emt 0:00:30]} 2. Nc3 {[%emt 0:00:30]} Nc6 {[%emt 0:00:30]} 3. f4 {[%emt 0:00:00]} g6 {[%emt 0:00:30]} 4. Nf3 {[%emt 0:00:00]} Bg7 {[%emt 0:00:30]} 5. Bb5 {[%emt 0:00:00]} Nd4 {[%emt 0:00:30]} 6. O-O {[%emt 0:00:00]} e6 {[%emt 0:00:30]} 7. d3 {[%emt 0:00:00] B23: Closed Sicilian: Lines without g3} (7. e5 a6 8. Bd3 f5 9. b3 d6 10. Bb2 Ne7 11. Ne2 Nxf3+ 12. Rxf3 Nc6 13. Re3 O-O 14. Qe1 b5 15. a4 {0-1 (50) Slipak,S (2444)-Krysa,L (2518) Villa Martelli 2017}) 7... Ne7 {[%emt 0:05:30]} 8. Nxd4 {[%emt 0:03:00]} cxd4 {[%emt 0:00:30]} 9. Ne2 {[%emt 0:00:30]} a6 {[%emt 0:02:30]} 10. Ba4 {[%emt 0:00:00]} O-O {[%emt 0:01:30]} 11. Qe1 {[%emt 0:01:00]} f5 {[%emt 0:03:30]} 12. e5 {[%emt 0:06:30]} b5 {[%emt 0:06:30]} 13. Bb3 {[%emt 0:00:30]} Nc6 {[%emt 0:04:30]} 14. Qf2 {[%emt 0:01:30]} d6 {[%emt 0:05:30]} 15. Nxd4 {[%emt 0:02:30]} Nxd4 {[%emt 0:01:30]} 16. Qxd4 {[%emt 0:00:00]} dxe5 {[%emt 0:00:30]} 17. Qxd8 {[%emt 0:04:00]} Rxd8 {[%emt 0:00:30]} 18. fxe5 {[%emt 0:04:30]} Bxe5 {[%emt 0:02:30]} 19. Re1 $146 {[%emt 0:07:30]} Bd4+ {[%emt 0:04:30]} 20. Kf1 {[%emt 0:01:30]} Kf7 {[%emt 0:09:30]} 21. c3 {[%emt 0:07:30]} Bf6 {[%emt 0:16:30]} 22. d4 {[%emt 0:00:30]} g5 {[%emt 0:01:30]} 23. Bd2 {[%emt 0:06:30]} a5 {[%emt 0:04:30]} 24. a3 {[%emt 0:05:30]} Ra6 {[%emt 0:02:30]} 25. Re3 {[%emt 0:08:30]} Bb7 {[%emt 0:05:30]} 26. Rh3 {[%emt 0:06:30]} Kg6 {[%emt 0:05:06]} 27. Re1 {[%emt 0:03:30]} Be4 {[%emt 0:01:55]} 28. Bd1 {[%emt 0:02:30]} e5 {[%emt 0:03:50]} 29. Bh5+ {[%emt 0:01:30]} Kg7 {[%emt 0:00:20]} 30. dxe5 {[%emt 0:02:30]} Rxd2 {[%emt 0:01:55]} 31. exf6+ {[%emt 0:00:30]} Rxf6 {[%emt 0:00:16]} 32. Rg3 {[%emt 0:01:30]} Rxb2 {[%emt 0:01:37]} 33. Rxg5+ {[%emt 0:01:30]} Kh6 {[%emt 0:02:40]} 34. h4 {[%emt 0:00:30]} Rxg2 {[%emt 0:02:52]} 35. Rxe4 {[%emt 0:07:27]} Rxg5 {[%emt 0:01:17]} 36. hxg5+ {[%emt 0:00:30]} Kxg5 {[%emt 0:00:00]} 37. Re7 {[%emt 0:02:42]} Kxh5 {[%emt 0:00:19]} 38. Rxh7+ {[%emt 0:00:30]} Kg4 {[%emt 0:00:00]} 39. Rb7 {[%emt 0:00:00]} Rc6 {[%emt 0:01:50]} 40. Rxb5 {[%emt 0:00:00]} Rxc3 {[%emt 0:00:00]} 41. Rxa5 {[%emt 0:01:21]} f4 {[%emt 0:04:03]} 42. Ra8 {[%emt 0:07:30]} Kf3 {[%emt 0:03:30]} 43. Ke1 {[%emt 0:00:00]} Rc1+ {[%emt 0:03:30]} 44. Kd2 {[%emt 0:00:00]} Ra1 {[%emt 0:00:00]} 45. a4 {[%emt 0:02:30]} Kg2 {[%emt 0:01:00]} 46. a5 $11 {[%emt 0:07:30]} f3 {[%emt 0:00:30]} 47. Rg8+ {[%emt 0:03:30]} Kf1 {[%emt 0:02:30]} 48. Rg3 {[%emt 0:07:30]} f2 {[%emt 0:04:27]} 49. Rg5 {[%emt 0:00:30]} Ra3 {[%emt 0:03:50]} 50. Rf5 {[%emt 0:04:55]} Kg2 {[%emt 0:01:43]} 51. Rg5+ {[%emt 0:01:37]} Rg3 {[%emt 0:00:33]} 0-1

[Event "World Junior U20 Girls 2018"]
[Site "Gebze"]
[Date "2018.09.13"]
[Round "9"]
[White "Bai, Xue"]
[Black "Chu, Ruotong"]
[Result "1-0"]
[ECO "B28"]
[WhiteElo "2073"]
[BlackElo "2199"]
[Annotator "NA"]
[PlyCount "105"]
[EventDate "2018.09.05"]
[EventType "swiss"]
[EventCountry "TUR"]
[SourceTitle "playchess.com"]
[Source "ChessBase"]
[SourceQuality "1"]
[TimeControl "40/5400+30:1800+30"]

1. e4 {[%emt 0:00:30]} c5 {[%emt 0:02:30]} 2. Nf3 {[%emt 0:00:30]} a6 {[%emt 0:00:30]} 3. c4 {[%emt 0:08:30]} Nc6 {[%emt 0:09:30]} 4. d4 {[%emt 0:00:30]} cxd4 {[%emt 0:00:30]} 5. Nxd4 {[%emt 0:00:30]} e5 {[%emt 0:01:30]} 6. Nxc6 {[%emt 0:05:30] LiveBook: 5 Games B28: Sicilian: 2 Nf3 a6 (O'Kelly Variation)} (6. Nf5 d6 7. Nc3 g6 8. Ne3 Bh6 9. g3 Nf6 10. Bg2 O-O 11. O-O b5 12. f4 exf4 13. gxf4 Bb7 14. e5 dxe5 15. fxe5 {1-0 (40) Salem,A (2638)-Rapport,R (2694) Geneva 2017 CBM 180 [Fier,A]}) 6... bxc6 {[%emt 0:00:30]} 7. Be2 {[%emt 0:03:30]} Bc5 {[%emt 0:05:30]} 8. Qb3 $146 {[%emt 0:02:30]} ({Predecessor:} 8. O-O Ne7 9. Be3 Ba7 10. Bxa7 Rxa7 11. Qd6 Qc7 12. Rd1 Qxd6 13. Rxd6 Ng6 {1-0 (46) Madera,S-Schanilec,L Prague 1996}) 8... Bd4 {[%emt 0:10:30]} 9. Be3 {[%emt 0:01:30]} c5 {[%emt 0:13:30]} 10. Bxd4 {[%emt 0:01:30]} cxd4 {[%emt 0:00:00]} 11. O-O {[%emt 0:04:30]} Ne7 {[%emt 0:00:00]} 12. f4 {[%emt 0:02:30]} exf4 {[%emt 0:03:30]} 13. Rxf4 {[%emt 0:02:30]} Qc7 {[%emt 0:01:30]} 14. Qg3 {[%emt 0:01:30]} Ng6 {[%emt 0:02:30]} 15. Rf2 {[%emt 0:06:30]} Qxg3 {[%emt 0:14:30]} 16. hxg3 {[%emt 0:00:00]} Bb7 {[%emt 0:00:30]} 17. Bf3 {[%emt 0:00:00]} Ne5 {[%emt 0:00:30]} 18. Na3 {[%emt 0:00:30]} g5 {[%emt 0:06:30]} 19. Bh5 {[%emt 0:08:30]} Ke7 {[%emt 0:04:30]} 20. Nc2 {[%emt 0:04:30]} d3 {[%emt 0:05:42]} 21. Nd4 {[%emt 0:01:30]} Rhf8 {[%emt 0:02:21]} 22. Nf5+ {[%emt 0:01:30]} Ke6 {[%emt 0:00:12]} 23. Nd4+ {[%emt 0:06:30]} Kd6 {[%emt 0:00:34]} 24. Rf6+ {[%emt 0:01:30]} Ke7 {[%emt 0:09:20]} 25. Rb6 {[%emt 0:13:30]} Bxe4 {[%emt 0:01:44]} 26. Re1 {[%emt 0:10:37]} f5 {[%emt 0:00:05]} 27. Nxf5+ {[%emt 0:00:14]} Rxf5 {[%emt 0:00:51]} 28. Rxe4 {[%emt 0:00:02]} Raf8 {[%emt 0:00:09]} 29. c5 {[%emt 0:03:54]} R8f6 {[%emt 0:02:06]} 30. Kh2 {[%emt 0:05:41]} d2 {[%emt 0:01:00]} 31. Be2 {[%emt 0:03:30]} Rxb6 {[%emt 0:02:31]} 32. cxb6 {[%emt 0:00:30]} Kd6 {[%emt 0:00:30]} 33. Rd4+ {[%emt 0:00:30]} Kc6 {[%emt 0:00:30]} 34. Rxd2 {[%emt 0:00:30]} Kxb6 {[%emt 0:00:30]} 35. g4 {[%emt 0:00:30]} Rf6 {[%emt 0:00:30]} 36. Kg3 {[%emt 0:00:30]} Kc5 {[%emt 0:00:30]} 37. a3 {[%emt 0:00:30]} a5 {[%emt 0:00:30]} 38. Bd1 {[%emt 0:00:32]} d5 {[%emt 0:00:00]} 39. b4+ {[%emt 0:00:00]} axb4 {[%emt 0:01:01]} 40. axb4+ {[%emt 0:00:00]} Kc6 {[%emt 0:00:30]} 41. Ba4+ {[%emt 0:01:30]} Kd6 {[%emt 0:07:54]} 42. Bb3 {[%emt 0:00:00]} Rf4 {[%emt 0:01:30]} 43. Rxd5+ {[%emt 0:00:00]} Ke6 {[%emt 0:00:30]} 44. Rd4+ {[%emt 0:02:30]} Kf6 {[%emt 0:02:30]} 45. Rxf4+ {[%emt 0:00:00]} gxf4+ {[%emt 0:00:30]} 46. Kh4 {[%emt 0:00:00]} f3 {[%emt 0:00:30]} 47. gxf3 {[%emt 0:00:30]} Nxf3+ {[%emt 0:00:30]} 48. Kh5 {[%emt 0:00:30]} Ke5 {[%emt 0:00:00]} 49. Bg8 {[%emt 0:03:30]} Kd4 {[%emt 0:01:49]} 50. Kh6 {[%emt 0:00:00]} Ne5 {[%emt 0:00:42]} 51. g5 {[%emt 0:00:00]} Nf3 {[%emt 0:00:00]} 52. Bb3 $18 {[%emt 0:01:30]} Kc3 {[%emt 0:02:43]} 53. b5 {[%emt 0:00:30]} 1-0

[Event "World Junior U20 Girls 2018"]
[Site "Gebze"]
[Date "2018.09.13"]
[Round "9"]
[White "Li, Yunshan"]
[Black "Schneider, Jana"]
[Result "1/2-1/2"]
[ECO "E01"]
[WhiteElo "2060"]
[BlackElo "2190"]
[Annotator "NA"]
[PlyCount "70"]
[EventDate "2018.09.05"]
[EventType "swiss"]
[EventCountry "TUR"]
[SourceTitle "playchess.com"]
[Source "ChessBase"]
[SourceQuality "1"]
[TimeControl "40/5400+30:1800+30"]

1. d4 {[%emt 0:00:30]} Nf6 {[%emt 0:00:30]} 2. c4 {[%emt 0:00:30]} e6 {[%emt 0:00:30]} 3. g3 {[%emt 0:00:00]} d5 {[%emt 0:00:00]} 4. Nf3 {[%emt 0:00:00]} Bb4+ {[%emt 0:00:00]} 5. Bd2 {[%emt 0:00:00]} Bd6 {[%emt 0:00:00]} 6. Bg2 {[%emt 0:00:00]} Nbd7 {[%emt 0:02:00]} 7. O-O {[%emt 0:00:30]} O-O {[%emt 0:00:00]} 8. Qc2 {[%emt 0:00:30]} c6 {[%emt 0:00:00]} 9. Bg5 {[%emt 0:04:30]} h6 {[%emt 0:00:30]} 10. Bxf6 {[%emt 0:00:30]} Nxf6 {[%emt 0:00:30]} 11. Nbd2 {[%emt 0:00:30]} b6 {[%emt 0:03:30] E01: Catalan: Early deviations} 12. e4 {[%emt 0:00:30]} Be7 {[%emt 0:00:30]} 13. e5 {[%emt 0:05:30]} Nd7 {[%emt 0:00:30]} 14. cxd5 {[%emt 0:03:30]} cxd5 {[%emt 0:01:30]} 15. Rfc1 {[%emt 0:02:30] LiveBook: 37 Games} Bb7 {[%emt 0:08:30]} 16. Qc7 {[%emt 0:01:30]} Rb8 {[%emt 0:01:30]} 17. Bf1 {[%emt 0:02:30]} a6 {[%emt 0:06:30] [#]} 18. Nb3 $146 {[%emt 0:07:30]} ({Predecessor:} 18. Bd3 Qe8 19. Re1 {½-½ (93) Li,C (2756)-Erdos,V (2616) Germany 2015}) 18... Re8 {[%emt 0:17:30]} 19. Ne1 {[%emt 0:05:30]} f6 {[%emt 0:14:30]} 20. Bh3 {[%emt 0:01:30]} Nf8 {[%emt 0:01:30]} 21. Nd3 {[%emt 0:06:30]} Qxc7 {[%emt 0:03:30]} 22. Rxc7 {[%emt 0:00:30]} Bd8 {[%emt 0:01:30]} 23. Rc2 {[%emt 0:03:30]} f5 {[%emt 0:02:30]} 24. Nb4 {[%emt 0:07:30]} Kf7 {[%emt 0:19:38]} 25. Bf1 {[%emt 0:04:30]} Ra8 {[%emt 0:01:05]} 26. a4 {[%emt 0:03:30]} a5 {[%emt 0:01:54]} 27. Nc6 {[%emt 0:00:30]} Be7 {[%emt 0:03:02]} 28. Nxe7 {[%emt 0:02:30]} Rxe7 {[%emt 0:00:03]} 29. Rac1 $16 {[%emt 0:00:30]} Nd7 {[%emt 0:06:41]} 30. Rc7 {[%emt 0:05:30]} Ba6 {[%emt 0:00:12]} 31. Bxa6 {[%emt 0:01:30]} Rxa6 {[%emt 0:00:02]} 32. Rb7 {[%emt 0:00:30]} Ra8 {[%emt 0:01:45]} 33. Rcc7 {[%emt 0:01:30]} Rb8 {[%emt 0:00:45]} 34. Ra7 {[%emt 0:00:00]} Ke8 {[%emt 0:00:26]} 35. Rc3 {[%emt 0:10:00]} Nf8 {[%emt 0:01:54]} 1/2-1/2